Workbook

Sheet Scope
B2: MCS 027 - SPER AND SSHEE CALCULATOR
B8: This calculator can only be used for calculating the Seasonal Space Heating Energy Efficiency (SSHEE) and Seasonal Primary Energy Ratio (SPERh) for Air to Water and Water / Brine to Water heat pumps under the average climate conditions defined by Commission Regulation (EU) No. 813/2013
B10: MCS Certification Bodies may use the calculator when certifying products against the requirements of MCS 007 - (Product certification scheme requirements - Heat pumps).
B12: Data calculated in accordance with this calculator will be published within the product search section of the MCS database. Please visit http://www.mcscertified.com
B14: The calculator is designed for use as an Microsoft Excel Macro-Enabled workbook.

Sheet ErP Inputs
B1: This calculator can only be used for calculating the Seasonal Space Heating Energy Efficiency (SSHEE) and Seasonal Primary Energy Ratio (SPERh) for Air to Water and Water / Brine to Water heat pumps under the average climate conditions defined by Commission Regulation (EU) No. 813/2013
A2: Grace Davies 27/08/11
M3: Key
B4: 1 | C4: Heat Generator? | D4: Air Source | N4: Input Required
B5: 2 | C5: Temperature Control? | D5: Variable Outlet | N5: Calculated Outcomes
B6: 3 | C6: Has the manufacturer provided data to demonstrate that the heat pump can reach a flow temperature of 52oC at Condition A according to the relevant product table within EN 12309 for the average climate and high temperature application? | D6: Yes
B7: 4 | C7: Has the manufacturer provided data to demonstrate that the heat pump can reach a flow temperature of 61oC or greater at an inlet dry (wet) bulb temperature of -7oC (-8oC) for ASHP OR Brine 0oC for Ground Source OR Water 10oC for Water Source Heat Pumps | D7: Yes
C8: Classification under ErP | D8: =IF(D6="Yes","Heat Pump","Low Temperature Heat Pump") -> Heat Pump | E8: =IF(AND(D8="Low Temperature Heat Pump",D9="Very High Temperature Heat Pump"),"Test data for VHTHP's signifies a flow temperautre greater than 52oC for ErP classification, Change D6 to YES","") -> 
C9: Classification under MCS | D9: =IF(AND(D6="No",D7="No"),"Low Temperature Heat Pump",IF(AND(D6="Yes",D7="No"),"Heat Pump","Very High Temperature Heat Pump")) -> Very High Temperature Heat Pump
C10: Energy Label (Space Heater Only) to display SSHEE at | D10: =IF(D8="Heat Pump","55oC and 35oC","35oC") -> 55oC and 35oC
B11: Notes: | C11: Low Temperature Heat Pumps only need to supply test data to 35oC | AB11: Air Source
C12: Heat Pumps must supply test data at 35oC and 55oC | AB12: Ground Source
C13: Very High Temperature Heat Pumps must supply test data to 35oC, 55oC and 65oC | AB13: Water Source
G14: Flow Temperature (oC) | AB14: Fixed Outlet
G15: 35 | I15: 45 | K15: 55 | M15: 65 | AB15: Variable Outlet
C16: Rated Heat Output including the rated heat output of any supplementary heater under average climate conditions (kW) | O16: To be provided @ Tdesignh | AB16: Yes
AB17: No
C18: All entries to 3 significant figures | D18: Test Conditions EN 12309:2014 | E18: =(16-(-7))/26 -> 0.8846153846 | F18: A | G18: =(16-2)/26 -> 0.5384615385 | H18: B | I18: =(16-7)/26 -> 0.3461538462 | J18: C | K18: =(16-12)/26 -> 0.1538461538 | L18: D | M18: =(16-(-10))/26 -> 1 | N18: E*
B19: Product Performance Data | C19: Low Temperature Application (35oC) EN 12309-6:2014 - Table 5 (ASHP) or Table 17 (GSHP) | E19: =IF($D$4="Ground Source","B0 / W",IF($D$4="Air Source","A-7 / W","W10 / W")) -> A-7 / W | F19: =IF($D$5="Variable Outlet",VLOOKUP("Low",$AB$24:$AG$28,3,FALSE),VLOOKUP("Low",$AB$24:$AG$28,2,FALSE)) -> 34 | G19: =IF($D$4="Ground Source","B0 / W",IF($D$4="Air Source","A2 / W","W10 / W")) -> A2 / W | H19: =IF($D$5="Variable Outlet",VLOOKUP("Low",$AB$24:$AG$28,4,FALSE),VLOOKUP("Low",$AB$24:$AG$28,2,FALSE)) -> 30 | I19: =IF($D$4="Ground Source","B0 / W",IF($D$4="Air Source","A7 / W","W10 / W")) -> A7 / W | J19: =IF($D$5="Variable Outlet",VLOOKUP("Low",$AB$24:$AG$28,5,FALSE),VLOOKUP("Low",$AB$24:$AG$28,2,FALSE)) -> 27 | K19: =IF($D$4="Ground Source","B0 / W",IF($D$4="Air Source","A12 / W","W10 / W")) -> A12 / W | L19: =IF($D$5="Variable Outlet",VLOOKUP("Low",$AB$24:$AG$28,6,FALSE),VLOOKUP("Low",$AB$24:$AG$28,2,FALSE)) -> 24 | M19: =IF($D$4="Ground Source","B0 / W",IF($D$4="Air Source","A-10 / W","W10 / W")) -> A-10 / W | N19: =IF($D$5="Variable Outlet",VLOOKUP("Low",$AB$24:$AG$28,2,FALSE),VLOOKUP("Low",$AB$24:$AG$28,2,FALSE)) -> 35
D20: Heating Capacity (kW) | E20: =$G$16*E$18 -> 0 | G20: =$G$16*G$18 -> 0 | I20: =$G$16*I$18 -> 0 | K20: =$G$16*K$18 -> 0 | M20: =$G$16*M$18 -> 0 | AC20: Average Climate
D21: Gas Utilization Efficiency PL (kW/kWGCV) | O21: Performance data always required | AC21: Variable Outlet Flow Temperatures
D22: Auxiliary Energy Factor PL (kW/kWel) | O22: Performance data always required
D23: Capacity Ratio | O23: Leave blank if not measured | AC23: -10 | AD23: -7 | AE23: 2 | AF23: 7 | AG23: 12
C24: High Temperature Application (55oC) EN 12309-6:2014 - Table 11 (ASHP) or Table 23 (GSHP) | E24: =IF($D$4="Ground Source","B0 / W",IF($D$4="Air Source","A-7 / W","W10 / W")) -> A-7 / W | F24: =IF($D$5="Variable Outlet",VLOOKUP("High",$AB$24:$AG$28,3,FALSE),VLOOKUP("High",$AB$24:$AG$28,2,FALSE)) -> 52 | G24: =IF($D$4="Ground Source","B0 / W",IF($D$4="Air Source","A2 / W","W10 / W")) -> A2 / W | H24: =IF($D$5="Variable Outlet",VLOOKUP("High",$AB$24:$AG$28,4,FALSE),VLOOKUP("High",$AB$24:$AG$28,2,FALSE)) -> 42 | I24: =IF($D$4="Ground Source","B0 / W",IF($D$4="Air Source","A7 / W","W10 / W")) -> A7 / W | J24: =IF($D$5="Variable Outlet",VLOOKUP("High",$AB$24:$AG$28,5,FALSE),VLOOKUP("High",$AB$24:$AG$28,2,FALSE)) -> 36 | K24: =IF($D$4="Ground Source","B0 / W",IF($D$4="Air Source","A12 / W","W10 / W")) -> A12 / W | L24: =IF($D$5="Variable Outlet",VLOOKUP("High",$AB$24:$AG$28,6,FALSE),VLOOKUP("High",$AB$24:$AG$28,2,FALSE)) -> 30 | M24: =IF($D$4="Ground Source","B0 / W",IF($D$4="Air Source","A-10 / W","W10 / W")) -> A-10 / W | N24: =IF($D$5="Variable Outlet",VLOOKUP("High",$AB$24:$AG$28,2,FALSE),VLOOKUP("High",$AB$24:$AG$28,2,FALSE)) -> 55 | AB24: Low | AC24: 35 | AD24: 34 | AE24: 30 | AF24: 27 | AG24: 24
D25: Heating Capacity (kW) | E25: =IF($D$8="Heat Pump",$K$16*E$18,"NA") -> 0 | G25: =IF($D$8="Heat Pump",$K$16*G$18,"NA") -> 0 | I25: =IF($D$8="Heat Pump",$K$16*I$18,"NA") -> 0 | K25: =IF($D$8="Heat Pump",$K$16*K$18,"NA") -> 0 | M25: =IF($D$8="Heat Pump",$K$16*M$18,"NA") -> 0 | O25: =IF($D$8="Heat Pump","","Not applicable") ->  | AB25: Medium | AC25: 45 | AD25: 43 | AE25: 37 | AF25: 33 | AG25: 28
D26: Gas Utilization Efficiency PL (kW/kWGCV) | O26: =IF($D$8="Heat Pump","Performance data required","Not applicable") -> Performance data required | AB26: High | AC26: 55 | AD26: 52 | AE26: 42 | AF26: 36 | AG26: 30
D27: Auxiliary Energy Factor PL (kW/kWel) | O27: =IF($D$8="Heat Pump","Performance data required","Not applicable") -> Performance data required
D28: Capacity Ratio | O28: Leave blank if not measured | AB28: Very High | AC28: 65 | AD28: 61 | AE28: 49 | AF28: 41 | AG28: 32
C29: Very High Temperature Application (65oC) EN 12309-6:2014 - Table 14 (ASHP) or Table 26 (GSHP) | E29: =IF($D$4="Ground Source","B0 / W",IF($D$4="Air Source","A-7 / W","W10 / W")) -> A-7 / W | F29: =IF($D$5="Variable Outlet",VLOOKUP("Very High",$AB$24:$AG$28,3,FALSE),VLOOKUP("Very High",$AB$24:$AG$28,2,FALSE)) -> 61 | G29: =IF($D$4="Ground Source","B0 / W",IF($D$4="Air Source","A2 / W","W10 / W")) -> A2 / W | H29: =IF($D$5="Variable Outlet",VLOOKUP("Very High",$AB$24:$AG$28,4,FALSE),VLOOKUP("Very High",$AB$24:$AG$28,2,FALSE)) -> 49 | I29: =IF($D$4="Ground Source","B0 / W",IF($D$4="Air Source","A7 / W","W10 / W")) -> A7 / W | J29: =IF($D$5="Variable Outlet",VLOOKUP("Very High",$AB$24:$AG$28,5,FALSE),VLOOKUP("Very High",$AB$24:$AG$28,2,FALSE)) -> 41 | K29: =IF($D$4="Ground Source","B0 / W",IF($D$4="Air Source","A12 / W","W10 / W")) -> A12 / W | L29: =IF($D$5="Variable Outlet",VLOOKUP("Very High",$AB$24:$AG$28,6,FALSE),VLOOKUP("Very High",$AB$24:$AG$28,2,FALSE)) -> 32 | M29: =IF($D$4="Ground Source","B0 / W",IF($D$4="Air Source","A-10 / W","W10 / W")) -> A-10 / W | N29: =IF($D$5="Variable Outlet",VLOOKUP("Very High",$AB$24:$AG$28,2,FALSE),VLOOKUP("Very High",$AB$24:$AG$28,2,FALSE)) -> 65
D30: Heating Capacity (kW) | E30: =IF($D$9="Very High Temperature Heat Pump",$M$16*E$18,"NA") -> 0 | G30: =IF($D$9="Very High Temperature Heat Pump",$M$16*G$18,"NA") -> 0 | I30: =IF($D$9="Very High Temperature Heat Pump",$M$16*I$18,"NA") -> 0 | K30: =IF($D$9="Very High Temperature Heat Pump",$M$16*K$18,"NA") -> 0 | M30: =IF($D$9="Very High Temperature Heat Pump",$M$16*M$18,"NA") -> 0 | O30: =IF($D$9="Very High Temperature Heat Pump","","Not applicable") -> 
D31: Gas Utilization Efficiency PL (kW/kWGCV) | O31: =IF($D$9="Very High Temperature Heat Pump","Performance data required","Not applicable") -> Performance data required
D32: Auxiliary Energy Factor PL (kW/kWel) | O32: =IF($D$9="Very High Temperature Heat Pump","Performance data required","Not applicable") -> Performance data required
D33: Capacity Ratio | O33: Leave blank if not measured
C34: *If the declared Temperature Operation Limit (TOL) of the heat pump is lower than Tdesignh, then it may be assumed that TOL is equal to Tdesignh
C35: Condition E - The design temperature (Tdesignh) for the average climate conditions is fixed at -10oC
C36: Temperature application references are taken from EN 12309 NOT ErP definitions
C38: Temperature Operation Limit (TOL) | E38: oC | F38: Air to Water heat pumps must be capable of working at a temperature of -10oC or less
C39: Thermostat-off power (PTO) | E39: kW
C40: Stand-By Mode (PSB) | E40: kW
C41: Off power (POFF) | E41: kW
C43: The table below is only to be filled out if additional performance data is supplied by the manufacturer at the sink temperature of 45oC
B44: Product Performance Data | C44: Medium Temperature Application (45oC) EN 12309-6:2014 - Table 8 (ASHP) or Table 20 (GSHP) | E44: =IF($D$4="Ground Source","B0 / W",IF($D$4="Air Source","A-7 / W","W10 / W")) -> A-7 / W | F44: =IF($D$5="Variable Outlet",VLOOKUP("Medium",$AB$24:$AG$28,3,FALSE),VLOOKUP("Medium",$AB$24:$AG$28,2,FALSE)) -> 43 | G44: =IF($D$4="Ground Source","B0 / W",IF($D$4="Air Source","A2 / W","W10 / W")) -> A2 / W | H44: =IF($D$5="Variable Outlet",VLOOKUP("Medium",$AB$24:$AG$28,4,FALSE),VLOOKUP("Medium",$AB$24:$AG$28,2,FALSE)) -> 37 | I44: =IF($D$4="Ground Source","B0 / W",IF($D$4="Air Source","A7 / W","W10 / W")) -> A7 / W | J44: =IF($D$5="Variable Outlet",VLOOKUP("Medium",$AB$24:$AG$28,5,FALSE),VLOOKUP("Medium",$AB$24:$AG$28,2,FALSE)) -> 33 | K44: =IF($D$4="Ground Source","B0 / W",IF($D$4="Air Source","A12 / W","W10 / W")) -> A12 / W | L44: =IF($D$5="Variable Outlet",VLOOKUP("Medium",$AB$24:$AG$28,6,FALSE),VLOOKUP("Medium",$AB$24:$AG$28,2,FALSE)) -> 28 | M44: =IF($D$4="Ground Source","B0 / W",IF($D$4="Air Source","A-10 / W","W10 / W")) -> A-10 / W | N44: =IF($D$5="Variable Outlet",VLOOKUP("Medium",$AB$24:$AG$28,2,FALSE),VLOOKUP("Medium",$AB$24:$AG$28,2,FALSE)) -> 45
D45: Heating Capacity (kW) | E45: =$I$16*E$18 -> 0 | G45: =$I$16*G$18 -> 0 | I45: =$I$16*I$18 -> 0 | K45: =$I$16*K$18 -> 0 | M45: =$I$16*M$18 -> 0 | O45: This table is only to be completed in it entirety when performance data is supplied by the manufacturer at 45oC. Partial data is NOT to be accepted.
D46: Gas Utilization Efficiency PL (kW/kWGCV)
D47: Auxiliary Energy Factor PL (kW/kWel)
D48: Capacity Ratio
C51: OUTPUTS
B52: Application temperature | C52: Seasonal Space Heating Energy Efficiency | D52: Seasonal Primary Energy Ratio | E52: CLASS
B53: Low (35°C) | C53: ='LOW SPER'!P17 ->  | D53: ='LOW SPER'!P11 ->  | E53: ='LOW SPER'!P19 -> 
B54: Medium (45°C) | C54: =IF($D$8="Low Temperature Heat Pump","Not applicable",'MEDIUM SPER'!P17) ->  | D54: =IF($D$8="Low Temperature Heat Pump","Not applicable",'MEDIUM SPER'!P11) ->  | E54: =IF($D$8="Low Temperature Heat Pump","N/A",'MEDIUM SPER'!P19) -> 
B55: High (55°C) | C55: =IF($O$25="Not applicable","Not applicable",'HIGH SPER'!P17) ->  | D55: =IF($O$25="Not applicable","Not applicable",'HIGH SPER'!P11) ->  | E55: =IF($O$25="Not applicable","N/A",'HIGH SPER'!P19) -> 
B56: Very High (65°C) | C56: =IF($O$30="Not applicable","Not applicable",'VERY HIGH SPER'!P17) ->  | D56: =IF($O$31="Not applicable","Not applicable",'VERY HIGH SPER'!P11) ->  | E56: =IF($O$30="Not applicable","N/A",'VERY HIGH SPER'!P19) -> 
C57: =IF(OR(C53<100,C54<100,C55<100,C56<100),"Cells highlighted red are not compliant with EcoDesign Lot 1 requirements","") -> 
F58: Graph Data
F59: 35 | G59: =C53*2.5/100 -> 
C60: System Design Flow Temperature | D60: 35 | F60: 45 | G60: =C54*2.5/100 -> 
C61: System Equivalent SCOP* | D61: =IF(AND(D8="Low Temperature Heat Pump",D60>35),"HP Not Suitable",IF(AND(D8="Low Temperature Heat Pump",D60<=35),G59,IF(AND(D60>55,G64=""),"N/A",IF(AND(D60>=35,D60<=45),((G60-G59)/(F60-F59)*(D60-F60)+G60),IF(AND(D60>45,D60<=55),((G61-G60)/(F61-F60)*(D60-F61)+G61),((G64-G63)/(F64-F63)*(D60-F64)+G64)))))) ->  | F61: 55 | G61: =C55*2.5/100 -> 
F62: 65 | G62: =IF(D9="Heat Pump","",C56*2.5/100) -> 
C63: Flow Temperature | D63: Eq SCOP (equivalent to SPF3 SEPEMO SH only) | F63: 55 | G63: =IF(G62="","",G61) -> 
C64: 35 | D64: =IF(D8="Low Temperature Heat Pump",G59,(($G$60-$G$59)/($F$60-$F$59)*(C64-$F$60)+$G$60)) ->  | F64: 65 | G64: =G62 -> 
C65: 36 | D65: =IF(D8="Low Temperature Heat Pump","HP Not Suitable for this temerpautre",(($G$60-$G$59)/($F$60-$F$59)*(C65-$F$60)+$G$60)) -> 
C66: 37 | D66: =IF(D8="Low Temperature Heat Pump","HP Not Suitable for this temerpautre",(($G$60-$G$59)/($F$60-$F$59)*(C66-$F$60)+$G$60)) -> 
C67: 38 | D67: =IF(D8="Low Temperature Heat Pump","HP Not Suitable for this temerpautre",(($G$60-$G$59)/($F$60-$F$59)*(C67-$F$60)+$G$60)) -> 
C68: 39 | D68: =IF(D8="Low Temperature Heat Pump","HP Not Suitable for this temerpautre",(($G$60-$G$59)/($F$60-$F$59)*(C68-$F$60)+$G$60)) -> 
C69: 40 | D69: =IF(D8="Low Temperature Heat Pump","HP Not Suitable for this temerpautre",(($G$60-$G$59)/($F$60-$F$59)*(C69-$F$60)+$G$60)) -> 
C70: 41 | D70: =IF(D8="Low Temperature Heat Pump","HP Not Suitable for this temerpautre",(($G$60-$G$59)/($F$60-$F$59)*(C70-$F$60)+$G$60)) -> 
C71: 42 | D71: =IF(D8="Low Temperature Heat Pump","HP Not Suitable for this temerpautre",(($G$60-$G$59)/($F$60-$F$59)*(C71-$F$60)+$G$60)) -> 
C72: 43 | D72: =IF(D8="Low Temperature Heat Pump","HP Not Suitable for this temerpautre",(($G$60-$G$59)/($F$60-$F$59)*(C72-$F$60)+$G$60)) -> 
C73: 44 | D73: =IF(D8="Low Temperature Heat Pump","HP Not Suitable for this temerpautre",(($G$60-$G$59)/($F$60-$F$59)*(C73-$F$60)+$G$60)) -> 
C74: 45 | D74: =IF(D8="Low Temperature Heat Pump","HP Not Suitable for this temerpautre",(($G$60-$G$59)/($F$60-$F$59)*(C74-$F$60)+$G$60)) -> 
C75: 46 | D75: =IF(D8="Low Temperature Heat Pump","HP Not Suitable for this temerpautre",IF(AND(C75>45,C75<=55),(($G$61-$G$60)/($F$61-$F$60)*(C75-$F$61)+$G$61),(($G$64-$G$63)/($F$64-$F$63)*(C75-$F$64)+$G$64))) -> 
C76: 47 | D76: =IF(D8="Low Temperature Heat Pump","HP Not Suitable for this temerpautre",IF(AND(C76>45,C76<=55),(($G$61-$G$60)/($F$61-$F$60)*(C76-$F$61)+$G$61),(($G$64-$G$63)/($F$64-$F$63)*(C76-$F$64)+$G$64))) -> 
C77: 48 | D77: =IF(D8="Low Temperature Heat Pump","HP Not Suitable for this temerpautre",IF(AND(C77>45,C77<=55),(($G$61-$G$60)/($F$61-$F$60)*(C77-$F$61)+$G$61),(($G$64-$G$63)/($F$64-$F$63)*(C77-$F$64)+$G$64))) -> 
C78: 49 | D78: =IF(D8="Low Temperature Heat Pump","HP Not Suitable for this temerpautre",IF(AND(C78>45,C78<=55),(($G$61-$G$60)/($F$61-$F$60)*(C78-$F$61)+$G$61),(($G$64-$G$63)/($F$64-$F$63)*(C78-$F$64)+$G$64))) -> 
C79: 50 | D79: =IF(D8="Low Temperature Heat Pump","HP Not Suitable for this temerpautre",IF(AND(C79>45,C79<=55),(($G$61-$G$60)/($F$61-$F$60)*(C79-$F$61)+$G$61),(($G$64-$G$63)/($F$64-$F$63)*(C79-$F$64)+$G$64))) -> 
C80: 51 | D80: =IF(D8="Low Temperature Heat Pump","HP Not Suitable for this temerpautre",IF(AND(C80>45,C80<=55),(($G$61-$G$60)/($F$61-$F$60)*(C80-$F$61)+$G$61),(($G$64-$G$63)/($F$64-$F$63)*(C80-$F$64)+$G$64))) -> 
C81: 52 | D81: =IF(D8="Low Temperature Heat Pump","HP Not Suitable for this temerpautre",IF(AND(C81>45,C81<=55),(($G$61-$G$60)/($F$61-$F$60)*(C81-$F$61)+$G$61),(($G$64-$G$63)/($F$64-$F$63)*(C81-$F$64)+$G$64))) -> 
C82: 53 | D82: =IF(D8="Low Temperature Heat Pump","HP Not Suitable for this temerpautre",IF(AND(C82>45,C82<=55),(($G$61-$G$60)/($F$61-$F$60)*(C82-$F$61)+$G$61),(($G$64-$G$63)/($F$64-$F$63)*(C82-$F$64)+$G$64))) -> 
C83: 54 | D83: =IF(D8="Low Temperature Heat Pump","HP Not Suitable for this temerpautre",IF(AND(C83>45,C83<=55),(($G$61-$G$60)/($F$61-$F$60)*(C83-$F$61)+$G$61),(($G$64-$G$63)/($F$64-$F$63)*(C83-$F$64)+$G$64))) -> 
C84: 55 | D84: =IF(D8="Low Temperature Heat Pump","HP Not Suitable for this temerpautre",IF(AND(C84>45,C84<=55),(($G$61-$G$60)/($F$61-$F$60)*(C84-$F$61)+$G$61),(($G$64-$G$63)/($F$64-$F$63)*(C84-$F$64)+$G$64))) -> 
C85: 56 | D85: =IF(AND(C85>45,C85<=55),(($G$61-$G$60)/($F$61-$F$60)*(C85-$F$61)+$G$61),IF($D$7="No","HP Not suitable for this temperature",(($G$64-$G$63)/($F$64-$F$63)*(C85-$F$64)+$G$64))) -> 
C86: 57
C87: 58
C88: 59
C89: 60
C90: 61
C91: 62
C92: 63
C93: 64
C94: 65
C95: Cells highlighted red indicate at which flow temperature the Heat pump cannot achieve a System Equivalent SCOP of 2.5
C96: * System Equivalent SCOP = 2.5 * SSHEE

Sheet LOW SPER
C4: Summary
C5: Climate | D5: Average | J5: Table 1 Number of hours used for heating only - Average Climate | O5: Thermostat-off power PTO | P5: ='ErP Inputs'!$D$39 -> 0 | Q5: kW
C6: Tdesignh | D6: -10 | E6: oC | J6: On mode | K6: Thermostat-off mode HTO | L6: Standby mode HSB | M6: Off mode HOFF | O6: Stand by power PSB | P6: ='ErP Inputs'!$D$40 -> 0 | Q6: kW
C7: Property Full load (Pdesignh) | D7: ='ErP Inputs'!G16 -> 0 | E7: kW | I7: Average Climate (h/y) | J7: =M59 -> 2065.615385 | K7: 178 | L7: 0 | M7: 3672 | O7: Off power POFF | P7: ='ErP Inputs'!$D$41 -> 0 | Q7: kW
C8: Primgas | D8: 1 | O8: Qrefh = Pdesignh x HHE | P8: =D7*J7 -> 0
C9: Primelec | D9: 2.5 | O9: SAEFh | P9: =P8/(P8/M29+K7*P5+L7*P6+M7*P7) -> 
C11: ='ErP Inputs'!D4 -> Air Source | O11: SPERh | P11: =1/(D8/M28+D9/P9) -> 
C12: ='ErP Inputs'!D5 -> Variable Outlet
O13: Correction Factor F(1) | P13: 3 | Q13: %
C14: Part Load Ratio | F14: =IF(D5="Average","(Tj-16) / (-10-16) %",IF(D5="Warmer","(Tj-16) / (+2-16) %","(Tj-16) / (-22-16) %")) -> (Tj-16) / (-10-16) % | O14: Correction Factor F(2) | P14: =IF(C11="Ground Source",2,IF(C11="Water Source",1,0)) -> 0 | Q14: %
O15: Correction Factor SF(i) | P15: =P13+P14 -> 3 | Q15: %
C17: Condition | D17: Bin Temperature | E17: Outdoor heat exchanger | F17: Indoor Heat exchanger | G17: Part Load Ratio | H17: Part Load | I17: GUEhPL(Tj) (GCV) | J17: AEFhPL(Tj) | K17: Capacity Ratio | L17: Declared Capacity | O17: Seasonal Space Heating Energy Efficiency | P17: =100*P11-P15 -> 
G18: % | H18: kW | K18: CR | L18: kW
D19: -15 | E19: =IF($D$5="Average","Not Applicable",IF($D$5="Warmer","Not Applicable",IF($D$5="Colder",(minus15-16)/(Tdesignh-16),"Check Value"))) -> Not Applicable | F19: =IF($D$5="Average","Not Applicable",IF($D$5="Warmer","Not Applicable",IF($D$5="Colder",(minus15-16)/(Tdesignh-16),"Check Value"))) -> Not Applicable | O19: Seasonal Space Heating Energy Efficiency class | P19: =IF(P17>=175,"A+++",IF(AND(P17<175,P17>=150),"A++",IF(AND(P17<150,P17>=123),"A+",IF(AND(P17<123,P17>=115),"A",IF(AND(P17<115,P17>=107),"B",IF(AND(P17<107,P17>=100),"C",IF(AND(P17<100,P17>=61),"D",IF(AND(P17<61,P17>=59),"E",IF(AND(P17<59,P17>=55),"F","G"))))))))) -> 
C20: E (TOL) | D20: =IF('ErP Inputs'!D38>-10,-10,IF('ErP Inputs'!D38<Tdesignh,Tdesignh,D10)) -> -10 | E20: =IF('ErP Inputs'!D4="Ground Source",0,IF('ErP Inputs'!D4="Air Source",-10,10)) -> -10 | F20: ='ErP Inputs'!N19 -> 35 | G20: =(D20-16)/(Tdesignh-16) -> 1 | H20: =G20*$D$7 -> 0 | I20: ='ErP Inputs'!M21 -> 0 | J20: ='ErP Inputs'!M22 -> 0 | K20: =IF('ErP Inputs'!M23>0,'ErP Inputs'!M23,"NA") -> NA | L20: =IF(K20="NA","NA",H20/K20) -> NA
C21: A | D21: -7 | E21: =IF('ErP Inputs'!D4="Ground Source",0,IF('ErP Inputs'!D4="Air Source",-7,10)) -> -7 | F21: ='ErP Inputs'!F19 -> 34 | G21: =(D21-16)/(Tdesignh-16) -> 0.8846153846 | H21: =G21*$D$7 -> 0 | I21: ='ErP Inputs'!E21 -> 0 | J21: ='ErP Inputs'!E22 -> 0 | K21: =IF('ErP Inputs'!E23>0,'ErP Inputs'!E23,"NA") -> NA | L21: =IF(K21="NA","NA",H21/K21) -> NA
C22: B | D22: 2 | E22: =IF('ErP Inputs'!D4="Ground Source",0,IF('ErP Inputs'!D4="Air Source",2,10)) -> 2 | F22: ='ErP Inputs'!H19 -> 30 | G22: =(D22-16)/(Tdesignh-16) -> 0.5384615385 | H22: =G22*$D$7 -> 0 | I22: ='ErP Inputs'!G21 -> 0 | J22: ='ErP Inputs'!G22 -> 0 | K22: =IF('ErP Inputs'!G23>0,'ErP Inputs'!G23,"NA") -> NA | L22: =IF(K22="NA","NA",H22/K22) -> NA
C23: C | D23: 7 | E23: =IF('ErP Inputs'!D4="Ground Source",0,IF('ErP Inputs'!D4="Air Source",7,10)) -> 7 | F23: ='ErP Inputs'!J19 -> 27 | G23: =(D23-16)/(Tdesignh-16) -> 0.3461538462 | H23: 0 | I23: ='ErP Inputs'!I21 -> 0 | J23: ='ErP Inputs'!I22 -> 0 | K23: =IF('ErP Inputs'!I23>0,'ErP Inputs'!I23,"NA") -> NA | L23: NA
C24: D | D24: 12 | E24: =IF('ErP Inputs'!D4="Ground Source",0,IF('ErP Inputs'!D4="Air Source",12,10)) -> 12 | F24: ='ErP Inputs'!L19 -> 24 | G24: =(D24-16)/(Tdesignh-16) -> 0.1538461538 | H24: 0 | I24: ='ErP Inputs'!K21 -> 0 | J24: ='ErP Inputs'!K22 -> 0 | K24: =IF('ErP Inputs'!K23>0,'ErP Inputs'!K23,"NA") -> NA | L24: NA
L28: SGUEhGCV | M28: =M60 -> 
L29: SAEFhON | M29: =M61 -> 
C30: Bin | D30: Outdoor temperature (dry bulb) | E30: Hours | F30: Part Load Ratio | G30: Part Load | H30: Annual Heating Demand | I30: Gas Utilization Efficiency | J30: Auxiliary Energy Factor | K30: Gas consumption | L30: Electrical consumption | M30: Equivalent hours
C31: binj | D31: Tj | E31: Hj | F31: PLRh(Tj) | G31: Ph(Tj) | H31: Hj*Ph(Tj) | I31: GUEhPL(Tj) (GCV) | J31: AEFhPL(Tj) | K31: Hj*Ph(Tj) / GUEhPL(Tj) | L31: Hj*Ph(Tj) / AEFhPL(Tj) | M31: Hj*PLRh(Tj)
D32: oC | E32: h/y | G32: kW | H32: kWh
C33: 21 | D33: -10 | E33: =HLOOKUP($D$5,'Table 37'!$B$3:$F$51,24,FALSE) -> 1 | F33: =(D33-16)/(Tdesignh-16) -> 1 | G33: =$D$7*F33 -> 0 | H33: =E33*G33 -> 0 | I33: =I20 -> 0 | J33: =J20 -> 0 | K33: =E33*G33/I33 ->  | L33: =E33*G33/J33 ->  | M33: =E33*F33 -> 1
C34: 22 | D34: -9 | E34: =HLOOKUP($D$5,'Table 37'!$B$3:$F$51,25,FALSE) -> 25 | F34: 0.9615384615 | G34: 0 | H34: 0 | I34: =(I$36-I$33)/($D$36-$D$33)*($D34-$D$33)+I$33 -> 0 | J34: =(J$36-J$33)/($D$36-$D$33)*($D34-$D$33)+J$33 -> 0 | K34: =E34*G34/I34 ->  | L34: =E34*G34/J34 ->  | M34: =E34*F34 -> 24.03846154
C35: 23 | D35: -8 | E35: =HLOOKUP($D$5,'Table 37'!$B$3:$F$51,26,FALSE) -> 23 | F35: 0.9230769231 | G35: 0 | H35: 0 | I35: =(I$36-I$33)/($D$36-$D$33)*($D35-$D$33)+I$33 -> 0 | J35: =(J$36-J$33)/($D$36-$D$33)*($D35-$D$33)+J$33 -> 0 | M35: 21.23076923
C36: 24 | D36: -7 | E36: =HLOOKUP($D$5,'Table 37'!$B$3:$F$51,27,FALSE) -> 24 | F36: 0.8846153846 | G36: 0 | H36: 0 | I36: =I21 -> 0 | J36: =J21 -> 0 | M36: 21.23076923
C37: 25 | D37: -6 | E37: =HLOOKUP($D$5,'Table 37'!$B$3:$F$51,28,FALSE) -> 27 | F37: 0.8461538462 | G37: 0 | H37: 0 | I37: =(I$45-I$36)/($D$45-$D$36)*($D37-$D$36)+I$36 -> 0 | J37: =(J$45-J$36)/($D$45-$D$36)*($D37-$D$36)+J$36 -> 0 | M37: 22.84615385
C38: 26 | D38: -5 | E38: =HLOOKUP($D$5,'Table 37'!$B$3:$F$51,29,FALSE) -> 68 | F38: 0.8076923077 | G38: 0 | H38: 0 | I38: =(I$45-I$36)/($D$45-$D$36)*($D38-$D$36)+I$36 -> 0 | J38: 0 | M38: 54.92307692
C39: 27 | D39: -4 | E39: =HLOOKUP($D$5,'Table 37'!$B$3:$F$51,30,FALSE) -> 91 | F39: 0.7692307692 | G39: 0 | H39: 0 | I39: 0 | J39: 0 | M39: 70
C40: 28 | D40: -3 | E40: =HLOOKUP($D$5,'Table 37'!$B$3:$F$51,31,FALSE) -> 89 | F40: 0.7307692308 | G40: 0 | H40: 0 | I40: 0 | J40: 0 | M40: 65.03846154
C41: 29 | D41: -2 | E41: =HLOOKUP($D$5,'Table 37'!$B$3:$F$51,32,FALSE) -> 165 | F41: 0.6923076923 | G41: 0 | H41: 0 | I41: 0 | J41: 0 | M41: 114.2307692
C42: 30 | D42: -1 | E42: =HLOOKUP($D$5,'Table 37'!$B$3:$F$51,33,FALSE) -> 173 | F42: 0.6538461538 | G42: 0 | H42: 0 | I42: 0 | J42: 0 | M42: 113.1153846
C43: 31 | D43: 0 | E43: =HLOOKUP($D$5,'Table 37'!$B$3:$F$51,34,FALSE) -> 240 | F43: 0.6153846154 | G43: 0 | H43: 0 | I43: 0 | J43: 0 | M43: 147.6923077
C44: 32 | D44: 1 | E44: =HLOOKUP($D$5,'Table 37'!$B$3:$F$51,35,FALSE) -> 280 | F44: 0.5769230769 | G44: 0 | H44: 0 | I44: 0 | J44: 0 | M44: 161.5384615
C45: 33 | D45: 2 | E45: =HLOOKUP($D$5,'Table 37'!$B$3:$F$51,36,FALSE) -> 320 | F45: 0.5384615385 | G45: 0 | H45: 0 | I45: =I22 -> 0 | J45: =J22 -> 0 | M45: 172.3076923
C46: 34 | D46: 3 | E46: =HLOOKUP($D$5,'Table 37'!$B$3:$F$51,37,FALSE) -> 357 | F46: 0.5 | G46: 0 | H46: 0 | I46: =(I$50-I$45)/($D$50-$D$45)*($D46-$D$45)+I$45 -> 0 | J46: =(J$50-J$45)/($D$50-$D$45)*($D46-$D$45)+J$45 -> 0 | M46: 178.5
C47: 35 | D47: 4 | E47: =HLOOKUP($D$5,'Table 37'!$B$3:$F$51,38,FALSE) -> 356 | F47: 0.4615384615 | G47: 0 | H47: 0 | I47: =(I$50-I$45)/($D$50-$D$45)*($D47-$D$45)+I$45 -> 0 | J47: 0 | M47: 164.3076923
C48: 36 | D48: 5 | E48: =HLOOKUP($D$5,'Table 37'!$B$3:$F$51,39,FALSE) -> 303 | F48: 0.4230769231 | G48: 0 | H48: 0 | I48: 0 | J48: 0 | M48: 128.1923077
C49: 37 | D49: 6 | E49: =HLOOKUP($D$5,'Table 37'!$B$3:$F$51,40,FALSE) -> 330 | F49: 0.3846153846 | G49: 0 | H49: 0 | I49: 0 | J49: 0 | M49: 126.9230769
C50: 38 | D50: 7 | E50: =HLOOKUP($D$5,'Table 37'!$B$3:$F$51,41,FALSE) -> 326 | F50: 0.3461538462 | G50: 0 | H50: 0 | I50: =I23 -> 0 | J50: =J23 -> 0 | M50: 112.8461538
C51: 39 | D51: 8 | E51: =HLOOKUP($D$5,'Table 37'!$B$3:$F$51,42,FALSE) -> 348 | F51: 0.3076923077 | G51: 0 | H51: 0 | I51: =(I$55-I$50)/($D$55-$D$50)*($D51-$D$50)+I$50 -> 0 | J51: =(J$55-J$50)/($D$55-$D$50)*($D51-$D$50)+J$50 -> 0 | M51: 107.0769231
C52: 40 | D52: 9 | E52: =HLOOKUP($D$5,'Table 37'!$B$3:$F$51,43,FALSE) -> 335 | F52: 0.2692307692 | G52: 0 | H52: 0 | I52: =(I$55-I$50)/($D$55-$D$50)*($D52-$D$50)+I$50 -> 0 | J52: 0 | M52: 90.19230769
C53: 41 | D53: 10 | E53: =HLOOKUP($D$5,'Table 37'!$B$3:$F$51,44,FALSE) -> 315 | F53: 0.2307692308 | G53: 0 | H53: 0 | I53: 0 | J53: 0 | M53: 72.69230769
C54: 42 | D54: 11 | E54: =HLOOKUP($D$5,'Table 37'!$B$3:$F$51,45,FALSE) -> 215 | F54: 0.1923076923 | G54: 0 | H54: 0 | I54: 0 | J54: 0 | M54: 41.34615385
C55: 43 | D55: 12 | E55: =HLOOKUP($D$5,'Table 37'!$B$3:$F$51,46,FALSE) -> 169 | F55: 0.1538461538 | G55: 0 | H55: 0 | I55: =I24 -> 0 | J55: =J24 -> 0 | M55: 26
C56: 44 | D56: 13 | E56: =HLOOKUP($D$5,'Table 37'!$B$3:$F$51,47,FALSE) -> 151 | F56: 0.1153846154 | G56: 0 | H56: 0 | I56: =(I$55-I$50)/($D$55-$D$50)*($D56-$D$50)+I$50 -> 0 | J56: 0 | M56: 17.42307692
C57: 45 | D57: 14 | E57: =HLOOKUP($D$5,'Table 37'!$B$3:$F$51,48,FALSE) -> 105 | F57: 0.07692307692 | G57: 0 | H57: 0 | I57: 0 | J57: 0 | M57: 8.076923077
C58: 46 | D58: 15 | E58: =HLOOKUP($D$5,'Table 37'!$B$3:$F$51,49,FALSE) -> 74 | F58: 0.03846153846 | G58: 0 | H58: 0 | I58: 0 | J58: 0 | M58: 2.846153846
E59: =SUM(E33:E58) -> 4910 | H59: =SUM(H33:H58) -> 0 | K59: =SUM(K33:K58) ->  | L59: =SUM(L33:L58) ->  | M59: 2065.615385
L60: SGUEhGCV | M60: =H59/K59 -> 
L61: SAEFhON | M61: =H59/L59 -> 

Sheet MEDIUM SPER
C4: Summary
C5: Climate | D5: Average | J5: Table 1 Number of hours used for heating only - Average Climate | O5: Thermostat-off power PTO | P5: ='ErP Inputs'!$D$39 -> 0 | Q5: kW
C6: Tdesignh | D6: -10 | E6: oC | J6: On mode | K6: Thermostat-off mode HTO | L6: Standby mode HSB | M6: Off mode HOFF | O6: Stand by power PSB | P6: ='ErP Inputs'!$D$40 -> 0 | Q6: kW
C7: Property Full load (Pdesignh) | D7: ='ErP Inputs'!I16 -> 0 | E7: kW | I7: Average Climate (h/y) | J7: =M59 -> 2065.615385 | K7: 178 | L7: 0 | M7: 3672 | O7: Off power POFF | P7: ='ErP Inputs'!$D$41 -> 0 | Q7: kW
C8: Primgas | D8: 1 | O8: Qrefh = Pdesignh x HHE | P8: =D7*J7 -> 0
C9: Primelec | D9: 2.5 | O9: SAEFh | P9: =P8/(P8/M29+K7*P5+L7*P6+M7*P7) -> 
C11: ='ErP Inputs'!D4 -> Air Source | O11: SPERh | P11: =1/(D8/M28+D9/P9) -> 
C12: ='ErP Inputs'!D5 -> Variable Outlet
O13: Correction Factor F(1) | P13: 3 | Q13: %
C14: Part Load Ratio | F14: =IF(D5="Average","(Tj-16) / (-10-16) %",IF(D5="Warmer","(Tj-16) / (+2-16) %","(Tj-16) / (-22-16) %")) -> (Tj-16) / (-10-16) % | O14: Correction Factor F(2) | P14: =IF(C11="Ground Source",2,IF(C11="Water Source",1,0)) -> 0 | Q14: %
O15: Correction Factor SF(i) | P15: =P13+P14 -> 3 | Q15: %
C17: Condition | D17: Bin Temperature | E17: Outdoor heat exchanger | F17: Indoor Heat exchanger | G17: Part Load Ratio | H17: Part Load | I17: GUEhPL(Tj) (GCV) | J17: AEFhPL(Tj) | K17: Capacity Ratio | L17: Declared Capacity | O17: Seasonal Space Heating Energy Efficiency | P17: =100*P11-P15 -> 
G18: % | H18: kW | K18: CR | L18: kW
D19: -15 | E19: =IF($D$5="Average","Not Applicable",IF($D$5="Warmer","Not Applicable",IF($D$5="Colder",(minus15-16)/(Tdesignh-16),"Check Value"))) -> Not Applicable | F19: =IF($D$5="Average","Not Applicable",IF($D$5="Warmer","Not Applicable",IF($D$5="Colder",(minus15-16)/(Tdesignh-16),"Check Value"))) -> Not Applicable | O19: Seasonal Space Heating Energy Efficiency class | P19: =IF('ErP Inputs'!D8="Low Temperature Heat Pump",IF(P17>=175,"A+++",IF(AND(P17<175,P17>=150),"A++",IF(AND(P17<150,P17>=123),"A+",IF(AND(P17<123,P17>=115),"A",IF(AND(P17<115,P17>=107),"B",IF(AND(P17<107,P17>=100),"C",IF(AND(P17<100,P17>=61),"D",IF(AND(P17<61,P17>=59),"E",IF(AND(P17<59,P17>=55),"F","G"))))))))),IF(P17>=150,"A+++",IF(AND(P17<150,P17>=125),"A++",IF(AND(P17<125,P17>=98),"A+",IF(AND(P17<98,P17>=90),"A",IF(AND(P17<90,P17>=82),"B",IF(AND(P17<82,P17>=75),"C",IF(AND(P17<75,P17>=36),"D",IF(AND(P17<36,P17>=34),"E",IF(AND(P17<34,P17>=30),"F","G")))))))))) -> 
C20: E (TOL) | D20: =IF('ErP Inputs'!D38>-10,-10,IF('ErP Inputs'!D38<Tdesignh,Tdesignh,D10)) -> -10 | E20: =IF('ErP Inputs'!D4="Ground Source",0,IF('ErP Inputs'!D4="Air Source",-10,10)) -> -10 | F20: ='ErP Inputs'!N44 -> 45 | G20: =(D20-16)/(Tdesignh-16) -> 1 | H20: =G20*$D$7 -> 0 | I20: =IF('ErP Inputs'!M46="",(('HIGH SPER'!I20+'LOW SPER'!I20)*0.5),'ErP Inputs'!M46) -> 0 | J20: =IF('ErP Inputs'!M47="",(('HIGH SPER'!J20+'LOW SPER'!J20)*0.5),'ErP Inputs'!M47) -> 0 | K20: =IF('ErP Inputs'!M48>0,'ErP Inputs'!M48,"NA") -> NA | L20: =IF(K20="NA","NA",H20/K20) -> NA
C21: A | D21: -7 | E21: =IF('ErP Inputs'!D4="Ground Source",0,IF('ErP Inputs'!D4="Air Source",-7,10)) -> -7 | F21: ='ErP Inputs'!F44 -> 43 | G21: =(D21-16)/(Tdesignh-16) -> 0.8846153846 | H21: =G21*$D$7 -> 0 | I21: =IF('ErP Inputs'!E46="",(('HIGH SPER'!I21+'LOW SPER'!I21)*0.5),'ErP Inputs'!E46) -> 0 | J21: =IF('ErP Inputs'!E47="",(('HIGH SPER'!J21+'LOW SPER'!J21)*0.5),'ErP Inputs'!E47) -> 0 | K21: =IF('ErP Inputs'!E48>0,'ErP Inputs'!E48,"NA") -> NA | L21: =IF(K21="NA","NA",H21/K21) -> NA
C22: B | D22: 2 | E22: =IF('ErP Inputs'!D4="Ground Source",0,IF('ErP Inputs'!D4="Air Source",2,10)) -> 2 | F22: ='ErP Inputs'!H44 -> 37 | G22: =(D22-16)/(Tdesignh-16) -> 0.5384615385 | H22: =G22*$D$7 -> 0 | I22: =IF('ErP Inputs'!G46="",(('HIGH SPER'!I22+'LOW SPER'!I22)*0.5),'ErP Inputs'!G46) -> 0 | J22: =IF('ErP Inputs'!G47="",(('HIGH SPER'!J22+'LOW SPER'!J22)*0.5),'ErP Inputs'!G47) -> 0 | K22: =IF('ErP Inputs'!G48>0,'ErP Inputs'!G48,"NA") -> NA | L22: =IF(K22="NA","NA",H22/K22) -> NA
C23: C | D23: 7 | E23: =IF('ErP Inputs'!D4="Ground Source",0,IF('ErP Inputs'!D4="Air Source",7,10)) -> 7 | F23: ='ErP Inputs'!J44 -> 33 | G23: =(D23-16)/(Tdesignh-16) -> 0.3461538462 | H23: 0 | I23: =IF('ErP Inputs'!I46="",(('HIGH SPER'!I23+'LOW SPER'!I23)*0.5),'ErP Inputs'!I46) -> 0 | J23: =IF('ErP Inputs'!I47="",(('HIGH SPER'!J23+'LOW SPER'!J23)*0.5),'ErP Inputs'!I47) -> 0 | K23: =IF('ErP Inputs'!I48>0,'ErP Inputs'!I48,"NA") -> NA | L23: NA
C24: D | D24: 12 | E24: =IF('ErP Inputs'!D4="Ground Source",0,IF('ErP Inputs'!D4="Air Source",12,10)) -> 12 | F24: ='ErP Inputs'!L44 -> 28 | G24: =(D24-16)/(Tdesignh-16) -> 0.1538461538 | H24: 0 | I24: =IF('ErP Inputs'!K46="",(('HIGH SPER'!I24+'LOW SPER'!I24)*0.5),'ErP Inputs'!K46) -> 0 | J24: =IF('ErP Inputs'!K47="",(('HIGH SPER'!J24+'LOW SPER'!J24)*0.5),'ErP Inputs'!K47) -> 0 | K24: =IF('ErP Inputs'!K48>0,'ErP Inputs'!K48,"NA") -> NA | L24: NA
L28: SGUEhGCV | M28: =M60 -> 
L29: SAEFhON | M29: =M61 -> 
C30: Bin | D30: Outdoor temperature (dry bulb) | E30: Hours | F30: Part Load Ratio | G30: Part Load | H30: Annual Heating Demand | I30: Gas Utilization Efficiency | J30: Auxiliary Energy Factor | K30: Gas consumption | L30: Electrical consumption | M30: Equivalent hours
C31: binj | D31: Tj | E31: Hj | F31: PLRh(Tj) | G31: Ph(Tj) | H31: Hj*Ph(Tj) | I31: GUEhPL(Tj) (GCV) | J31: AEFhPL(Tj) | K31: Hj*Ph(Tj) / GUEhPL(Tj) | L31: Hj*Ph(Tj) / AEFhPL(Tj) | M31: Hj*PLRh(Tj)
D32: oC | E32: h/y | G32: kW | H32: kWh
C33: 21 | D33: -10 | E33: =HLOOKUP($D$5,'Table 37'!$B$3:$F$51,24,FALSE) -> 1 | F33: =(D33-16)/(Tdesignh-16) -> 1 | G33: =$D$7*F33 -> 0 | H33: =E33*G33 -> 0 | I33: =I20 -> 0 | J33: =J20 -> 0 | K33: =E33*G33/I33 ->  | L33: =E33*G33/J33 ->  | M33: =E33*F33 -> 1
C34: 22 | D34: -9 | E34: =HLOOKUP($D$5,'Table 37'!$B$3:$F$51,25,FALSE) -> 25 | F34: 0.9615384615 | G34: 0 | H34: 0 | I34: =(I$36-I$33)/($D$36-$D$33)*($D34-$D$33)+I$33 -> 0 | J34: =(J$36-J$33)/($D$36-$D$33)*($D34-$D$33)+J$33 -> 0 | K34: =E34*G34/I34 ->  | L34: =E34*G34/J34 ->  | M34: =E34*F34 -> 24.03846154
C35: 23 | D35: -8 | E35: =HLOOKUP($D$5,'Table 37'!$B$3:$F$51,26,FALSE) -> 23 | F35: 0.9230769231 | G35: 0 | H35: 0 | I35: =(I$36-I$33)/($D$36-$D$33)*($D35-$D$33)+I$33 -> 0 | J35: =(J$36-J$33)/($D$36-$D$33)*($D35-$D$33)+J$33 -> 0 | M35: 21.23076923
C36: 24 | D36: -7 | E36: =HLOOKUP($D$5,'Table 37'!$B$3:$F$51,27,FALSE) -> 24 | F36: 0.8846153846 | G36: 0 | H36: 0 | I36: =I21 -> 0 | J36: =J21 -> 0 | M36: 21.23076923
C37: 25 | D37: -6 | E37: =HLOOKUP($D$5,'Table 37'!$B$3:$F$51,28,FALSE) -> 27 | F37: 0.8461538462 | G37: 0 | H37: 0 | I37: =(I$45-I$36)/($D$45-$D$36)*($D37-$D$36)+I$36 -> 0 | J37: =(J$45-J$36)/($D$45-$D$36)*($D37-$D$36)+J$36 -> 0 | M37: 22.84615385
C38: 26 | D38: -5 | E38: =HLOOKUP($D$5,'Table 37'!$B$3:$F$51,29,FALSE) -> 68 | F38: 0.8076923077 | G38: 0 | H38: 0 | I38: =(I$45-I$36)/($D$45-$D$36)*($D38-$D$36)+I$36 -> 0 | J38: 0 | M38: 54.92307692
C39: 27 | D39: -4 | E39: =HLOOKUP($D$5,'Table 37'!$B$3:$F$51,30,FALSE) -> 91 | F39: 0.7692307692 | G39: 0 | H39: 0 | I39: 0 | J39: 0 | M39: 70
C40: 28 | D40: -3 | E40: =HLOOKUP($D$5,'Table 37'!$B$3:$F$51,31,FALSE) -> 89 | F40: 0.7307692308 | G40: 0 | H40: 0 | I40: 0 | J40: 0 | M40: 65.03846154
C41: 29 | D41: -2 | E41: =HLOOKUP($D$5,'Table 37'!$B$3:$F$51,32,FALSE) -> 165 | F41: 0.6923076923 | G41: 0 | H41: 0 | I41: 0 | J41: 0 | M41: 114.2307692
C42: 30 | D42: -1 | E42: =HLOOKUP($D$5,'Table 37'!$B$3:$F$51,33,FALSE) -> 173 | F42: 0.6538461538 | G42: 0 | H42: 0 | I42: 0 | J42: 0 | M42: 113.1153846
C43: 31 | D43: 0 | E43: =HLOOKUP($D$5,'Table 37'!$B$3:$F$51,34,FALSE) -> 240 | F43: 0.6153846154 | G43: 0 | H43: 0 | I43: 0 | J43: 0 | M43: 147.6923077
C44: 32 | D44: 1 | E44: =HLOOKUP($D$5,'Table 37'!$B$3:$F$51,35,FALSE) -> 280 | F44: 0.5769230769 | G44: 0 | H44: 0 | I44: 0 | J44: 0 | M44: 161.5384615
C45: 33 | D45: 2 | E45: =HLOOKUP($D$5,'Table 37'!$B$3:$F$51,36,FALSE) -> 320 | F45: 0.5384615385 | G45: 0 | H45: 0 | I45: =I22 -> 0 | J45: =J22 -> 0 | M45: 172.3076923
C46: 34 | D46: 3 | E46: =HLOOKUP($D$5,'Table 37'!$B$3:$F$51,37,FALSE) -> 357 | F46: 0.5 | G46: 0 | H46: 0 | I46: =(I$50-I$45)/($D$50-$D$45)*($D46-$D$45)+I$45 -> 0 | J46: =(J$50-J$45)/($D$50-$D$45)*($D46-$D$45)+J$45 -> 0 | M46: 178.5
C47: 35 | D47: 4 | E47: =HLOOKUP($D$5,'Table 37'!$B$3:$F$51,38,FALSE) -> 356 | F47: 0.4615384615 | G47: 0 | H47: 0 | I47: =(I$50-I$45)/($D$50-$D$45)*($D47-$D$45)+I$45 -> 0 | J47: 0 | M47: 164.3076923
C48: 36 | D48: 5 | E48: =HLOOKUP($D$5,'Table 37'!$B$3:$F$51,39,FALSE) -> 303 | F48: 0.4230769231 | G48: 0 | H48: 0 | I48: 0 | J48: 0 | M48: 128.1923077
C49: 37 | D49: 6 | E49: =HLOOKUP($D$5,'Table 37'!$B$3:$F$51,40,FALSE) -> 330 | F49: 0.3846153846 | G49: 0 | H49: 0 | I49: 0 | J49: 0 | M49: 126.9230769
C50: 38 | D50: 7 | E50: =HLOOKUP($D$5,'Table 37'!$B$3:$F$51,41,FALSE) -> 326 | F50: 0.3461538462 | G50: 0 | H50: 0 | I50: =I23 -> 0 | J50: =J23 -> 0 | M50: 112.8461538
C51: 39 | D51: 8 | E51: =HLOOKUP($D$5,'Table 37'!$B$3:$F$51,42,FALSE) -> 348 | F51: 0.3076923077 | G51: 0 | H51: 0 | I51: =(I$55-I$50)/($D$55-$D$50)*($D51-$D$50)+I$50 -> 0 | J51: =(J$55-J$50)/($D$55-$D$50)*($D51-$D$50)+J$50 -> 0 | M51: 107.0769231
C52: 40 | D52: 9 | E52: =HLOOKUP($D$5,'Table 37'!$B$3:$F$51,43,FALSE) -> 335 | F52: 0.2692307692 | G52: 0 | H52: 0 | I52: =(I$55-I$50)/($D$55-$D$50)*($D52-$D$50)+I$50 -> 0 | J52: 0 | M52: 90.19230769
C53: 41 | D53: 10 | E53: =HLOOKUP($D$5,'Table 37'!$B$3:$F$51,44,FALSE) -> 315 | F53: 0.2307692308 | G53: 0 | H53: 0 | I53: 0 | J53: 0 | M53: 72.69230769
C54: 42 | D54: 11 | E54: =HLOOKUP($D$5,'Table 37'!$B$3:$F$51,45,FALSE) -> 215 | F54: 0.1923076923 | G54: 0 | H54: 0 | I54: 0 | J54: 0 | M54: 41.34615385
C55: 43 | D55: 12 | E55: =HLOOKUP($D$5,'Table 37'!$B$3:$F$51,46,FALSE) -> 169 | F55: 0.1538461538 | G55: 0 | H55: 0 | I55: =I24 -> 0 | J55: =J24 -> 0 | M55: 26
C56: 44 | D56: 13 | E56: =HLOOKUP($D$5,'Table 37'!$B$3:$F$51,47,FALSE) -> 151 | F56: 0.1153846154 | G56: 0 | H56: 0 | I56: =(I$55-I$50)/($D$55-$D$50)*($D56-$D$50)+I$50 -> 0 | J56: 0 | M56: 17.42307692
C57: 45 | D57: 14 | E57: =HLOOKUP($D$5,'Table 37'!$B$3:$F$51,48,FALSE) -> 105 | F57: 0.07692307692 | G57: 0 | H57: 0 | I57: 0 | J57: 0 | M57: 8.076923077
C58: 46 | D58: 15 | E58: =HLOOKUP($D$5,'Table 37'!$B$3:$F$51,49,FALSE) -> 74 | F58: 0.03846153846 | G58: 0 | H58: 0 | I58: 0 | J58: 0 | M58: 2.846153846
E59: =SUM(E33:E58) -> 4910 | H59: =SUM(H33:H58) -> 0 | K59: =SUM(K33:K58) ->  | L59: =SUM(L33:L58) ->  | M59: 2065.615385
L60: SGUEhGCV | M60: =H59/K59 -> 
L61: SAEFhON | M61: =H59/L59 -> 

Sheet HIGH SPER
C4: Summary
C5: Climate | D5: Average | J5: Table 1 Number of hours used for heating only - Average Climate | O5: Thermostat-off power PTO | P5: ='ErP Inputs'!$D$39 -> 0 | Q5: kW
C6: Tdesignh | D6: -10 | E6: oC | J6: On mode | K6: Thermostat-off mode HTO | L6: Standby mode HSB | M6: Off mode HOFF | O6: Stand by power PSB | P6: ='ErP Inputs'!$D$40 -> 0 | Q6: kW
C7: Property Full load (Pdesignh) | D7: ='ErP Inputs'!K16 -> 0 | E7: kW | I7: Average Climate (h/y) | J7: =M59 -> 2065.615385 | K7: 178 | L7: 0 | M7: 3672 | O7: Off power POFF | P7: ='ErP Inputs'!$D$41 -> 0 | Q7: kW
C8: Primgas | D8: 1 | O8: Qrefh = Pdesignh x HHE | P8: =D7*J7 -> 0
C9: Primelec | D9: 2.5 | O9: SAEFh | P9: =P8/(P8/M29+K7*P5+L7*P6+M7*P7) -> 
C11: ='ErP Inputs'!D4 -> Air Source | O11: SPERh | P11: =1/(D8/M28+D9/P9) -> 
C12: ='ErP Inputs'!D5 -> Variable Outlet
O13: Correction Factor F(1) | P13: 3 | Q13: %
C14: Part Load Ratio | F14: =IF(D5="Average","(Tj-16) / (-10-16) %",IF(D5="Warmer","(Tj-16) / (+2-16) %","(Tj-16) / (-22-16) %")) -> (Tj-16) / (-10-16) % | O14: Correction Factor F(2) | P14: =IF(C11="Ground Source",2,IF(C11="Water Source",1,0)) -> 0 | Q14: %
O15: Correction Factor SF(i) | P15: =P13+P14 -> 3 | Q15: %
C17: Condition | D17: Bin Temperature | E17: Outdoor heat exchanger | F17: Indoor Heat exchanger | G17: Part Load Ratio | H17: Part Load | I17: GUEhPL(Tj) (GCV) | J17: AEFhPL(Tj) | K17: Capacity Ratio | L17: Declared Capacity | O17: Seasonal Space Heating Energy Efficiency | P17: =100*P11-P15 -> 
G18: % | H18: kW | K18: CR | L18: kW
D19: -15 | E19: =IF($D$5="Average","Not Applicable",IF($D$5="Warmer","Not Applicable",IF($D$5="Colder",(minus15-16)/(Tdesignh-16),"Check Value"))) -> Not Applicable | F19: =IF($D$5="Average","Not Applicable",IF($D$5="Warmer","Not Applicable",IF($D$5="Colder",(minus15-16)/(Tdesignh-16),"Check Value"))) -> Not Applicable | O19: Seasonal Space Heating Energy Efficiency class | P19: =IF('ErP Inputs'!D8="Low Temperature Heat Pump",IF(P17>=175,"A+++",IF(AND(P17<175,P17>=150),"A++",IF(AND(P17<150,P17>=123),"A+",IF(AND(P17<123,P17>=115),"A",IF(AND(P17<115,P17>=107),"B",IF(AND(P17<107,P17>=100),"C",IF(AND(P17<100,P17>=61),"D",IF(AND(P17<61,P17>=59),"E",IF(AND(P17<59,P17>=55),"F","G"))))))))),IF(P17>=150,"A+++",IF(AND(P17<150,P17>=125),"A++",IF(AND(P17<125,P17>=98),"A+",IF(AND(P17<98,P17>=90),"A",IF(AND(P17<90,P17>=82),"B",IF(AND(P17<82,P17>=75),"C",IF(AND(P17<75,P17>=36),"D",IF(AND(P17<36,P17>=34),"E",IF(AND(P17<34,P17>=30),"F","G")))))))))) -> 
C20: E (TOL) | D20: =IF('ErP Inputs'!D38>-10,-10,IF('ErP Inputs'!D38<Tdesignh,Tdesignh,D10)) -> -10 | E20: =IF('ErP Inputs'!D4="Ground Source",0,IF('ErP Inputs'!D4="Air Source",-10,10)) -> -10 | F20: ='ErP Inputs'!N24 -> 55 | G20: =(D20-16)/(Tdesignh-16) -> 1 | H20: =G20*$D$7 -> 0 | I20: ='ErP Inputs'!M26 -> 0 | J20: ='ErP Inputs'!M27 -> 0 | K20: =IF('ErP Inputs'!M28>0,'ErP Inputs'!M28,"NA") -> NA | L20: =IF(K20="NA","NA",H20/K20) -> NA
C21: A | D21: -7 | E21: =IF('ErP Inputs'!D4="Ground Source",0,IF('ErP Inputs'!D4="Air Source",-7,10)) -> -7 | F21: ='ErP Inputs'!F24 -> 52 | G21: =(D21-16)/(Tdesignh-16) -> 0.8846153846 | H21: =G21*$D$7 -> 0 | I21: ='ErP Inputs'!E26 -> 0 | J21: ='ErP Inputs'!E27 -> 0 | K21: =IF('ErP Inputs'!E28>0,'ErP Inputs'!E28,"NA") -> NA | L21: =IF(K21="NA","NA",H21/K21) -> NA
C22: B | D22: 2 | E22: =IF('ErP Inputs'!D4="Ground Source",0,IF('ErP Inputs'!D4="Air Source",2,10)) -> 2 | F22: ='ErP Inputs'!H24 -> 42 | G22: =(D22-16)/(Tdesignh-16) -> 0.5384615385 | H22: =G22*$D$7 -> 0 | I22: ='ErP Inputs'!G26 -> 0 | J22: ='ErP Inputs'!G27 -> 0 | K22: =IF('ErP Inputs'!G28>0,'ErP Inputs'!G28,"NA") -> NA | L22: =IF(K22="NA","NA",H22/K22) -> NA
C23: C | D23: 7 | E23: =IF('ErP Inputs'!D4="Ground Source",0,IF('ErP Inputs'!D4="Air Source",7,10)) -> 7 | F23: ='ErP Inputs'!J24 -> 36 | G23: =(D23-16)/(Tdesignh-16) -> 0.3461538462 | H23: 0 | I23: ='ErP Inputs'!I26 -> 0 | J23: ='ErP Inputs'!I27 -> 0 | K23: =IF('ErP Inputs'!I28>0,'ErP Inputs'!I28,"NA") -> NA | L23: NA
C24: D | D24: 12 | E24: =IF('ErP Inputs'!D4="Ground Source",0,IF('ErP Inputs'!D4="Air Source",12,10)) -> 12 | F24: ='ErP Inputs'!L24 -> 30 | G24: =(D24-16)/(Tdesignh-16) -> 0.1538461538 | H24: 0 | I24: ='ErP Inputs'!K26 -> 0 | J24: ='ErP Inputs'!K27 -> 0 | K24: =IF('ErP Inputs'!K28>0,'ErP Inputs'!K28,"NA") -> NA | L24: NA
L28: SGUEhGCV | M28: =M60 -> 
L29: SAEFhON | M29: =M61 -> 
C30: Bin | D30: Outdoor temperature (dry bulb) | E30: Hours | F30: Part Load Ratio | G30: Part Load | H30: Annual Heating Demand | I30: Gas Utilization Efficiency | J30: Auxiliary Energy Factor | K30: Gas consumption | L30: Electrical consumption | M30: Equivalent hours
C31: binj | D31: Tj | E31: Hj | F31: PLRh(Tj) | G31: Ph(Tj) | H31: Hj*Ph(Tj) | I31: GUEhPL(Tj) (GCV) | J31: AEFhPL(Tj) | K31: Hj*Ph(Tj) / GUEhPL(Tj) | L31: Hj*Ph(Tj) / AEFhPL(Tj) | M31: Hj*PLRh(Tj)
D32: oC | E32: h/y | G32: kW | H32: kWh
C33: 21 | D33: -10 | E33: =HLOOKUP($D$5,'Table 37'!$B$3:$F$51,24,FALSE) -> 1 | F33: =(D33-16)/(Tdesignh-16) -> 1 | G33: =$D$7*F33 -> 0 | H33: =E33*G33 -> 0 | I33: =I20 -> 0 | J33: =J20 -> 0 | K33: =E33*G33/I33 ->  | L33: =E33*G33/J33 ->  | M33: =E33*F33 -> 1
C34: 22 | D34: -9 | E34: =HLOOKUP($D$5,'Table 37'!$B$3:$F$51,25,FALSE) -> 25 | F34: 0.9615384615 | G34: 0 | H34: 0 | I34: =(I$36-I$33)/($D$36-$D$33)*($D34-$D$33)+I$33 -> 0 | J34: =(J$36-J$33)/($D$36-$D$33)*($D34-$D$33)+J$33 -> 0 | K34: =E34*G34/I34 ->  | L34: =E34*G34/J34 ->  | M34: =E34*F34 -> 24.03846154
C35: 23 | D35: -8 | E35: =HLOOKUP($D$5,'Table 37'!$B$3:$F$51,26,FALSE) -> 23 | F35: 0.9230769231 | G35: 0 | H35: 0 | I35: =(I$36-I$33)/($D$36-$D$33)*($D35-$D$33)+I$33 -> 0 | J35: =(J$36-J$33)/($D$36-$D$33)*($D35-$D$33)+J$33 -> 0 | M35: 21.23076923
C36: 24 | D36: -7 | E36: =HLOOKUP($D$5,'Table 37'!$B$3:$F$51,27,FALSE) -> 24 | F36: 0.8846153846 | G36: 0 | H36: 0 | I36: =I21 -> 0 | J36: =J21 -> 0 | M36: 21.23076923
C37: 25 | D37: -6 | E37: =HLOOKUP($D$5,'Table 37'!$B$3:$F$51,28,FALSE) -> 27 | F37: 0.8461538462 | G37: 0 | H37: 0 | I37: =(I$45-I$36)/($D$45-$D$36)*($D37-$D$36)+I$36 -> 0 | J37: =(J$45-J$36)/($D$45-$D$36)*($D37-$D$36)+J$36 -> 0 | M37: 22.84615385
C38: 26 | D38: -5 | E38: =HLOOKUP($D$5,'Table 37'!$B$3:$F$51,29,FALSE) -> 68 | F38: 0.8076923077 | G38: 0 | H38: 0 | I38: =(I$45-I$36)/($D$45-$D$36)*($D38-$D$36)+I$36 -> 0 | J38: 0 | M38: 54.92307692
C39: 27 | D39: -4 | E39: =HLOOKUP($D$5,'Table 37'!$B$3:$F$51,30,FALSE) -> 91 | F39: 0.7692307692 | G39: 0 | H39: 0 | I39: 0 | J39: 0 | M39: 70
C40: 28 | D40: -3 | E40: =HLOOKUP($D$5,'Table 37'!$B$3:$F$51,31,FALSE) -> 89 | F40: 0.7307692308 | G40: 0 | H40: 0 | I40: 0 | J40: 0 | M40: 65.03846154
C41: 29 | D41: -2 | E41: =HLOOKUP($D$5,'Table 37'!$B$3:$F$51,32,FALSE) -> 165 | F41: 0.6923076923 | G41: 0 | H41: 0 | I41: 0 | J41: 0 | M41: 114.2307692
C42: 30 | D42: -1 | E42: =HLOOKUP($D$5,'Table 37'!$B$3:$F$51,33,FALSE) -> 173 | F42: 0.6538461538 | G42: 0 | H42: 0 | I42: 0 | J42: 0 | M42: 113.1153846
C43: 31 | D43: 0 | E43: =HLOOKUP($D$5,'Table 37'!$B$3:$F$51,34,FALSE) -> 240 | F43: 0.6153846154 | G43: 0 | H43: 0 | I43: 0 | J43: 0 | M43: 147.6923077
C44: 32 | D44: 1 | E44: =HLOOKUP($D$5,'Table 37'!$B$3:$F$51,35,FALSE) -> 280 | F44: 0.5769230769 | G44: 0 | H44: 0 | I44: 0 | J44: 0 | M44: 161.5384615
C45: 33 | D45: 2 | E45: =HLOOKUP($D$5,'Table 37'!$B$3:$F$51,36,FALSE) -> 320 | F45: 0.5384615385 | G45: 0 | H45: 0 | I45: =I22 -> 0 | J45: =J22 -> 0 | M45: 172.3076923
C46: 34 | D46: 3 | E46: =HLOOKUP($D$5,'Table 37'!$B$3:$F$51,37,FALSE) -> 357 | F46: 0.5 | G46: 0 | H46: 0 | I46: =(I$50-I$45)/($D$50-$D$45)*($D46-$D$45)+I$45 -> 0 | J46: =(J$50-J$45)/($D$50-$D$45)*($D46-$D$45)+J$45 -> 0 | M46: 178.5
C47: 35 | D47: 4 | E47: =HLOOKUP($D$5,'Table 37'!$B$3:$F$51,38,FALSE) -> 356 | F47: 0.4615384615 | G47: 0 | H47: 0 | I47: =(I$50-I$45)/($D$50-$D$45)*($D47-$D$45)+I$45 -> 0 | J47: 0 | M47: 164.3076923
C48: 36 | D48: 5 | E48: =HLOOKUP($D$5,'Table 37'!$B$3:$F$51,39,FALSE) -> 303 | F48: 0.4230769231 | G48: 0 | H48: 0 | I48: 0 | J48: 0 | M48: 128.1923077
C49: 37 | D49: 6 | E49: =HLOOKUP($D$5,'Table 37'!$B$3:$F$51,40,FALSE) -> 330 | F49: 0.3846153846 | G49: 0 | H49: 0 | I49: 0 | J49: 0 | M49: 126.9230769
C50: 38 | D50: 7 | E50: =HLOOKUP($D$5,'Table 37'!$B$3:$F$51,41,FALSE) -> 326 | F50: 0.3461538462 | G50: 0 | H50: 0 | I50: =I23 -> 0 | J50: =J23 -> 0 | M50: 112.8461538
C51: 39 | D51: 8 | E51: =HLOOKUP($D$5,'Table 37'!$B$3:$F$51,42,FALSE) -> 348 | F51: 0.3076923077 | G51: 0 | H51: 0 | I51: =(I$55-I$50)/($D$55-$D$50)*($D51-$D$50)+I$50 -> 0 | J51: =(J$55-J$50)/($D$55-$D$50)*($D51-$D$50)+J$50 -> 0 | M51: 107.0769231
C52: 40 | D52: 9 | E52: =HLOOKUP($D$5,'Table 37'!$B$3:$F$51,43,FALSE) -> 335 | F52: 0.2692307692 | G52: 0 | H52: 0 | I52: =(I$55-I$50)/($D$55-$D$50)*($D52-$D$50)+I$50 -> 0 | J52: 0 | M52: 90.19230769
C53: 41 | D53: 10 | E53: =HLOOKUP($D$5,'Table 37'!$B$3:$F$51,44,FALSE) -> 315 | F53: 0.2307692308 | G53: 0 | H53: 0 | I53: 0 | J53: 0 | M53: 72.69230769
C54: 42 | D54: 11 | E54: =HLOOKUP($D$5,'Table 37'!$B$3:$F$51,45,FALSE) -> 215 | F54: 0.1923076923 | G54: 0 | H54: 0 | I54: 0 | J54: 0 | M54: 41.34615385
C55: 43 | D55: 12 | E55: =HLOOKUP($D$5,'Table 37'!$B$3:$F$51,46,FALSE) -> 169 | F55: 0.1538461538 | G55: 0 | H55: 0 | I55: =I24 -> 0 | J55: =J24 -> 0 | M55: 26
C56: 44 | D56: 13 | E56: =HLOOKUP($D$5,'Table 37'!$B$3:$F$51,47,FALSE) -> 151 | F56: 0.1153846154 | G56: 0 | H56: 0 | I56: =(I$55-I$50)/($D$55-$D$50)*($D56-$D$50)+I$50 -> 0 | J56: 0 | M56: 17.42307692
C57: 45 | D57: 14 | E57: =HLOOKUP($D$5,'Table 37'!$B$3:$F$51,48,FALSE) -> 105 | F57: 0.07692307692 | G57: 0 | H57: 0 | I57: 0 | J57: 0 | M57: 8.076923077
C58: 46 | D58: 15 | E58: =HLOOKUP($D$5,'Table 37'!$B$3:$F$51,49,FALSE) -> 74 | F58: 0.03846153846 | G58: 0 | H58: 0 | I58: 0 | J58: 0 | M58: 2.846153846
E59: =SUM(E33:E58) -> 4910 | H59: =SUM(H33:H58) -> 0 | K59: =SUM(K33:K58) ->  | L59: =SUM(L33:L58) ->  | M59: 2065.615385
L60: SGUEhGCV | M60: =H59/K59 -> 
L61: SAEFhON | M61: =H59/L59 -> 

Sheet VERY HIGH SPER
C4: Summary
C5: Climate | D5: Average | J5: Table 1 Number of hours used for heating only - Average Climate | O5: Thermostat-off power PTO | P5: ='ErP Inputs'!$D$39 -> 0 | Q5: kW
C6: Tdesignh | D6: -10 | E6: oC | J6: On mode | K6: Thermostat-off mode HTO | L6: Standby mode HSB | M6: Off mode HOFF | O6: Stand by power PSB | P6: ='ErP Inputs'!$D$40 -> 0 | Q6: kW
C7: Property Full load (Pdesignh) | D7: ='ErP Inputs'!M16 -> 0 | E7: kW | I7: Average Climate (h/y) | J7: =M59 -> 2065.615385 | K7: 178 | L7: 0 | M7: 3672 | O7: Off power POFF | P7: ='ErP Inputs'!$D$41 -> 0 | Q7: kW
C8: Primgas | D8: 1 | O8: Qrefh = Pdesignh x HHE | P8: =D7*J7 -> 0
C9: Primelec | D9: 2.5 | O9: SAEFh | P9: =P8/(P8/M29+K7*P5+L7*P6+M7*P7) -> 
C11: ='ErP Inputs'!D4 -> Air Source | O11: SPERh | P11: =1/(D8/M28+D9/P9) -> 
C12: ='ErP Inputs'!D5 -> Variable Outlet
O13: Correction Factor F(1) | P13: 3 | Q13: %
C14: Part Load Ratio | F14: =IF(D5="Average","(Tj-16) / (-10-16) %",IF(D5="Warmer","(Tj-16) / (+2-16) %","(Tj-16) / (-22-16) %")) -> (Tj-16) / (-10-16) % | O14: Correction Factor F(2) | P14: =IF(C11="Ground Source",2,IF(C11="Water Source",1,0)) -> 0 | Q14: %
O15: Correction Factor SF(i) | P15: =P13+P14 -> 3 | Q15: %
C17: Condition | D17: Bin Temperature | E17: Outdoor heat exchanger | F17: Indoor Heat exchanger | G17: Part Load Ratio | H17: Part Load | I17: GUEhPL(Tj) (GCV) | J17: AEFhPL(Tj) | K17: Capacity Ratio | L17: Declared Capacity | O17: Seasonal Space Heating Energy Efficiency | P17: =100*P11-P15 -> 
G18: % | H18: kW | K18: CR | L18: kW
D19: -15 | E19: =IF($D$5="Average","Not Applicable",IF($D$5="Warmer","Not Applicable",IF($D$5="Colder",(minus15-16)/(Tdesignh-16),"Check Value"))) -> Not Applicable | F19: =IF($D$5="Average","Not Applicable",IF($D$5="Warmer","Not Applicable",IF($D$5="Colder",(minus15-16)/(Tdesignh-16),"Check Value"))) -> Not Applicable | O19: Seasonal Space Heating Energy Efficiency class | P19: =IF('ErP Inputs'!D8="Low Temperature Heat Pump",IF(P17>=175,"A+++",IF(AND(P17<175,P17>=150),"A++",IF(AND(P17<150,P17>=123),"A+",IF(AND(P17<123,P17>=115),"A",IF(AND(P17<115,P17>=107),"B",IF(AND(P17<107,P17>=100),"C",IF(AND(P17<100,P17>=61),"D",IF(AND(P17<61,P17>=59),"E",IF(AND(P17<59,P17>=55),"F","G"))))))))),IF(P17>=150,"A+++",IF(AND(P17<150,P17>=125),"A++",IF(AND(P17<125,P17>=98),"A+",IF(AND(P17<98,P17>=90),"A",IF(AND(P17<90,P17>=82),"B",IF(AND(P17<82,P17>=75),"C",IF(AND(P17<75,P17>=36),"D",IF(AND(P17<36,P17>=34),"E",IF(AND(P17<34,P17>=30),"F","G")))))))))) -> 
C20: E (TOL) | D20: =IF('ErP Inputs'!D38>-10,-10,IF('ErP Inputs'!D38<Tdesignh,Tdesignh,D10)) -> -10 | E20: =IF('ErP Inputs'!D4="Ground Source",0,IF('ErP Inputs'!D4="Air Source",-10,10)) -> -10 | F20: ='ErP Inputs'!N29 -> 65 | G20: =(D20-16)/(Tdesignh-16) -> 1 | H20: =G20*$D$7 -> 0 | I20: ='ErP Inputs'!M31 -> 0 | J20: ='ErP Inputs'!M32 -> 0 | K20: =IF('ErP Inputs'!M33>0,'ErP Inputs'!M33,"NA") -> NA | L20: =IF(K20="NA","NA",H20/K20) -> NA
C21: A | D21: -7 | E21: =IF('ErP Inputs'!D4="Ground Source",0,IF('ErP Inputs'!D4="Air Source",-7,10)) -> -7 | F21: ='ErP Inputs'!F29 -> 61 | G21: =(D21-16)/(Tdesignh-16) -> 0.8846153846 | H21: =G21*$D$7 -> 0 | I21: ='ErP Inputs'!E31 -> 0 | J21: ='ErP Inputs'!E32 -> 0 | K21: =IF('ErP Inputs'!E33>0,'ErP Inputs'!E33,"NA") -> NA | L21: =IF(K21="NA","NA",H21/K21) -> NA
C22: B | D22: 2 | E22: =IF('ErP Inputs'!D4="Ground Source",0,IF('ErP Inputs'!D4="Air Source",2,10)) -> 2 | F22: ='ErP Inputs'!H29 -> 49 | G22: =(D22-16)/(Tdesignh-16) -> 0.5384615385 | H22: =G22*$D$7 -> 0 | I22: ='ErP Inputs'!G31 -> 0 | J22: ='ErP Inputs'!G32 -> 0 | K22: =IF('ErP Inputs'!G33>0,'ErP Inputs'!G33,"NA") -> NA | L22: =IF(K22="NA","NA",H22/K22) -> NA
C23: C | D23: 7 | E23: =IF('ErP Inputs'!D4="Ground Source",0,IF('ErP Inputs'!D4="Air Source",7,10)) -> 7 | F23: ='ErP Inputs'!J29 -> 41 | G23: =(D23-16)/(Tdesignh-16) -> 0.3461538462 | H23: 0 | I23: ='ErP Inputs'!I31 -> 0 | J23: ='ErP Inputs'!I32 -> 0 | K23: =IF('ErP Inputs'!I33>0,'ErP Inputs'!I33,"NA") -> NA | L23: NA
C24: D | D24: 12 | E24: =IF('ErP Inputs'!D4="Ground Source",0,IF('ErP Inputs'!D4="Air Source",12,10)) -> 12 | F24: ='ErP Inputs'!L29 -> 32 | G24: =(D24-16)/(Tdesignh-16) -> 0.1538461538 | H24: 0 | I24: ='ErP Inputs'!K31 -> 0 | J24: ='ErP Inputs'!K32 -> 0 | K24: =IF('ErP Inputs'!K33>0,'ErP Inputs'!K33,"NA") -> NA | L24: NA
L28: SGUEhGCV | M28: =M60 -> 
L29: SAEFhON | M29: =M61 -> 
C30: Bin | D30: Outdoor temperature (dry bulb) | E30: Hours | F30: Part Load Ratio | G30: Part Load | H30: Annual Heating Demand | I30: Gas Utilization Efficiency | J30: Auxiliary Energy Factor | K30: Gas consumption | L30: Electrical consumption | M30: Equivalent hours
C31: binj | D31: Tj | E31: Hj | F31: PLRh(Tj) | G31: Ph(Tj) | H31: Hj*Ph(Tj) | I31: GUEhPL(Tj) (GCV) | J31: AEFhPL(Tj) | K31: Hj*Ph(Tj) / GUEhPL(Tj) | L31: Hj*Ph(Tj) / AEFhPL(Tj) | M31: Hj*PLRh(Tj)
D32: oC | E32: h/y | G32: kW | H32: kWh
C33: 21 | D33: -10 | E33: =HLOOKUP($D$5,'Table 37'!$B$3:$F$51,24,FALSE) -> 1 | F33: =(D33-16)/(Tdesignh-16) -> 1 | G33: =$D$7*F33 -> 0 | H33: =E33*G33 -> 0 | I33: =I20 -> 0 | J33: =J20 -> 0 | K33: =E33*G33/I33 ->  | L33: =E33*G33/J33 ->  | M33: =E33*F33 -> 1
C34: 22 | D34: -9 | E34: =HLOOKUP($D$5,'Table 37'!$B$3:$F$51,25,FALSE) -> 25 | F34: 0.9615384615 | G34: 0 | H34: 0 | I34: =(I$36-I$33)/($D$36-$D$33)*($D34-$D$33)+I$33 -> 0 | J34: =(J$36-J$33)/($D$36-$D$33)*($D34-$D$33)+J$33 -> 0 | K34: =E34*G34/I34 ->  | L34: =E34*G34/J34 ->  | M34: =E34*F34 -> 24.03846154
C35: 23 | D35: -8 | E35: =HLOOKUP($D$5,'Table 37'!$B$3:$F$51,26,FALSE) -> 23 | F35: 0.9230769231 | G35: 0 | H35: 0 | I35: =(I$36-I$33)/($D$36-$D$33)*($D35-$D$33)+I$33 -> 0 | J35: =(J$36-J$33)/($D$36-$D$33)*($D35-$D$33)+J$33 -> 0 | M35: 21.23076923
C36: 24 | D36: -7 | E36: =HLOOKUP($D$5,'Table 37'!$B$3:$F$51,27,FALSE) -> 24 | F36: 0.8846153846 | G36: 0 | H36: 0 | I36: =I21 -> 0 | J36: =J21 -> 0 | M36: 21.23076923
C37: 25 | D37: -6 | E37: =HLOOKUP($D$5,'Table 37'!$B$3:$F$51,28,FALSE) -> 27 | F37: 0.8461538462 | G37: 0 | H37: 0 | I37: =(I$45-I$36)/($D$45-$D$36)*($D37-$D$36)+I$36 -> 0 | J37: =(J$45-J$36)/($D$45-$D$36)*($D37-$D$36)+J$36 -> 0 | M37: 22.84615385
C38: 26 | D38: -5 | E38: =HLOOKUP($D$5,'Table 37'!$B$3:$F$51,29,FALSE) -> 68 | F38: 0.8076923077 | G38: 0 | H38: 0 | I38: =(I$45-I$36)/($D$45-$D$36)*($D38-$D$36)+I$36 -> 0 | J38: 0 | M38: 54.92307692
C39: 27 | D39: -4 | E39: =HLOOKUP($D$5,'Table 37'!$B$3:$F$51,30,FALSE) -> 91 | F39: 0.7692307692 | G39: 0 | H39: 0 | I39: 0 | J39: 0 | M39: 70
C40: 28 | D40: -3 | E40: =HLOOKUP($D$5,'Table 37'!$B$3:$F$51,31,FALSE) -> 89 | F40: 0.7307692308 | G40: 0 | H40: 0 | I40: 0 | J40: 0 | M40: 65.03846154
C41: 29 | D41: -2 | E41: =HLOOKUP($D$5,'Table 37'!$B$3:$F$51,32,FALSE) -> 165 | F41: 0.6923076923 | G41: 0 | H41: 0 | I41: 0 | J41: 0 | M41: 114.2307692
C42: 30 | D42: -1 | E42: =HLOOKUP($D$5,'Table 37'!$B$3:$F$51,33,FALSE) -> 173 | F42: 0.6538461538 | G42: 0 | H42: 0 | I42: 0 | J42: 0 | M42: 113.1153846
C43: 31 | D43: 0 | E43: =HLOOKUP($D$5,'Table 37'!$B$3:$F$51,34,FALSE) -> 240 | F43: 0.6153846154 | G43: 0 | H43: 0 | I43: 0 | J43: 0 | M43: 147.6923077
C44: 32 | D44: 1 | E44: =HLOOKUP($D$5,'Table 37'!$B$3:$F$51,35,FALSE) -> 280 | F44: 0.5769230769 | G44: 0 | H44: 0 | I44: 0 | J44: 0 | M44: 161.5384615
C45: 33 | D45: 2 | E45: =HLOOKUP($D$5,'Table 37'!$B$3:$F$51,36,FALSE) -> 320 | F45: 0.5384615385 | G45: 0 | H45: 0 | I45: =I22 -> 0 | J45: =J22 -> 0 | M45: 172.3076923
C46: 34 | D46: 3 | E46: =HLOOKUP($D$5,'Table 37'!$B$3:$F$51,37,FALSE) -> 357 | F46: 0.5 | G46: 0 | H46: 0 | I46: =(I$50-I$45)/($D$50-$D$45)*($D46-$D$45)+I$45 -> 0 | J46: =(J$50-J$45)/($D$50-$D$45)*($D46-$D$45)+J$45 -> 0 | M46: 178.5
C47: 35 | D47: 4 | E47: =HLOOKUP($D$5,'Table 37'!$B$3:$F$51,38,FALSE) -> 356 | F47: 0.4615384615 | G47: 0 | H47: 0 | I47: =(I$50-I$45)/($D$50-$D$45)*($D47-$D$45)+I$45 -> 0 | J47: 0 | M47: 164.3076923
C48: 36 | D48: 5 | E48: =HLOOKUP($D$5,'Table 37'!$B$3:$F$51,39,FALSE) -> 303 | F48: 0.4230769231 | G48: 0 | H48: 0 | I48: 0 | J48: 0 | M48: 128.1923077
C49: 37 | D49: 6 | E49: =HLOOKUP($D$5,'Table 37'!$B$3:$F$51,40,FALSE) -> 330 | F49: 0.3846153846 | G49: 0 | H49: 0 | I49: 0 | J49: 0 | M49: 126.9230769
C50: 38 | D50: 7 | E50: =HLOOKUP($D$5,'Table 37'!$B$3:$F$51,41,FALSE) -> 326 | F50: 0.3461538462 | G50: 0 | H50: 0 | I50: =I23 -> 0 | J50: =J23 -> 0 | M50: 112.8461538
C51: 39 | D51: 8 | E51: =HLOOKUP($D$5,'Table 37'!$B$3:$F$51,42,FALSE) -> 348 | F51: 0.3076923077 | G51: 0 | H51: 0 | I51: =(I$55-I$50)/($D$55-$D$50)*($D51-$D$50)+I$50 -> 0 | J51: =(J$55-J$50)/($D$55-$D$50)*($D51-$D$50)+J$50 -> 0 | M51: 107.0769231
C52: 40 | D52: 9 | E52: =HLOOKUP($D$5,'Table 37'!$B$3:$F$51,43,FALSE) -> 335 | F52: 0.2692307692 | G52: 0 | H52: 0 | I52: =(I$55-I$50)/($D$55-$D$50)*($D52-$D$50)+I$50 -> 0 | J52: 0 | M52: 90.19230769
C53: 41 | D53: 10 | E53: =HLOOKUP($D$5,'Table 37'!$B$3:$F$51,44,FALSE) -> 315 | F53: 0.2307692308 | G53: 0 | H53: 0 | I53: 0 | J53: 0 | M53: 72.69230769
C54: 42 | D54: 11 | E54: =HLOOKUP($D$5,'Table 37'!$B$3:$F$51,45,FALSE) -> 215 | F54: 0.1923076923 | G54: 0 | H54: 0 | I54: 0 | J54: 0 | M54: 41.34615385
C55: 43 | D55: 12 | E55: =HLOOKUP($D$5,'Table 37'!$B$3:$F$51,46,FALSE) -> 169 | F55: 0.1538461538 | G55: 0 | H55: 0 | I55: =I24 -> 0 | J55: =J24 -> 0 | M55: 26
C56: 44 | D56: 13 | E56: =HLOOKUP($D$5,'Table 37'!$B$3:$F$51,47,FALSE) -> 151 | F56: 0.1153846154 | G56: 0 | H56: 0 | I56: =(I$55-I$50)/($D$55-$D$50)*($D56-$D$50)+I$50 -> 0 | J56: 0 | M56: 17.42307692
C57: 45 | D57: 14 | E57: =HLOOKUP($D$5,'Table 37'!$B$3:$F$51,48,FALSE) -> 105 | F57: 0.07692307692 | G57: 0 | H57: 0 | I57: 0 | J57: 0 | M57: 8.076923077
C58: 46 | D58: 15 | E58: =HLOOKUP($D$5,'Table 37'!$B$3:$F$51,49,FALSE) -> 74 | F58: 0.03846153846 | G58: 0 | H58: 0 | I58: 0 | J58: 0 | M58: 2.846153846
E59: =SUM(E33:E58) -> 4910 | H59: =SUM(H33:H58) -> 0 | K59: =SUM(K33:K58) ->  | L59: =SUM(L33:L58) ->  | M59: 2065.615385
L60: SGUEhGCV | M60: =H59/K59 -> 
L61: SAEFhON | M61: =H59/L59 -> 

Sheet Table 37
B2: Table 37 - j,Tj& hj reference heating seasons
D3: Warmer | E3: Average | F3: Colder
B4: j | C4: Tj | D4: hjW | E4: hjA | F4: hjC
C5: °C | D5: h | E5: h | F5: h
B6: 1 | C6: -30 | D6: 0 | E6: 0 | F6: 0
B7: 2 | C7: -29 | D7: 0 | E7: 0 | F7: 0
B8: 3 | C8: -28 | D8: 0 | E8: 0 | F8: 0
B9: 4 | C9: -27 | D9: 0 | E9: 0 | F9: 0
B10: 5 | C10: -26 | D10: 0 | E10: 0 | F10: 0
B11: 6 | C11: -25 | D11: 0 | E11: 0 | F11: 0
B12: 7 | C12: -24 | D12: 0 | E12: 0 | F12: 0
B13: 8 | C13: -23 | D13: 0 | E13: 0 | F13: 0
B14: 9 | C14: -22 | D14: 0 | E14: 0 | F14: 1
B15: 10 | C15: -21 | D15: 0 | E15: 0 | F15: 6
B16: 11 | C16: -20 | D16: 0 | E16: 0 | F16: 13
B17: 12 | C17: -19 | D17: 0 | E17: 0 | F17: 17
B18: 13 | C18: -18 | D18: 0 | E18: 0 | F18: 19
B19: 14 | C19: -17 | D19: 0 | E19: 0 | F19: 26
B20: 15 | C20: -16 | D20: 0 | E20: 0 | F20: 39
B21: 16 | C21: -15 | D21: 0 | E21: 0 | F21: 41
B22: 17 | C22: -14 | D22: 0 | E22: 0 | F22: 35
B23: 18 | C23: -13 | D23: 0 | E23: 0 | F23: 52
B24: 19 | C24: -12 | D24: 0 | E24: 0 | F24: 37
B25: 20 | C25: -11 | D25: 0 | E25: 0 | F25: 41
B26: 21 | C26: -10 | D26: 0 | E26: 1 | F26: 43
B27: 22 | C27: -9 | D27: 0 | E27: 25 | F27: 54
B28: 23 | C28: -8 | D28: 0 | E28: 23 | F28: 90
B29: 24 | C29: -7 | D29: 0 | E29: 24 | F29: 125
B30: 25 | C30: -6 | D30: 0 | E30: 27 | F30: 169
B31: 26 | C31: -5 | D31: 0 | E31: 68 | F31: 195
B32: 27 | C32: -4 | D32: 0 | E32: 91 | F32: 278
B33: 28 | C33: -3 | D33: 0 | E33: 89 | F33: 306
B34: 29 | C34: -2 | D34: 0 | E34: 165 | F34: 454
B35: 30 | C35: -1 | D35: 0 | E35: 173 | F35: 385
B36: 31 | C36: 0 | D36: 0 | E36: 240 | F36: 490
B37: 32 | C37: 1 | D37: 0 | E37: 280 | F37: 533
B38: 33 | C38: 2 | D38: 3 | E38: 320 | F38: 380
B39: 34 | C39: 3 | D39: 22 | E39: 357 | F39: 228
B40: 35 | C40: 4 | D40: 63 | E40: 356 | F40: 261
B41: 36 | C41: 5 | D41: 63 | E41: 303 | F41: 279
B42: 37 | C42: 6 | D42: 175 | E42: 330 | F42: 229
B43: 38 | C43: 7 | D43: 162 | E43: 326 | F43: 269
B44: 39 | C44: 8 | D44: 259 | E44: 348 | F44: 233
B45: 40 | C45: 9 | D45: 360 | E45: 335 | F45: 230
B46: 41 | C46: 10 | D46: 428 | E46: 315 | F46: 243
B47: 42 | C47: 11 | D47: 430 | E47: 215 | F47: 191
B48: 43 | C48: 12 | D48: 503 | E48: 169 | F48: 146
B49: 44 | C49: 13 | D49: 444 | E49: 151 | F49: 150
B50: 45 | C50: 14 | D50: 384 | E50: 105 | F50: 97
B51: 46 | C51: 15 | D51: 294 | E51: 74 | F51: 61
C52: Total | D52: =SUM(D6:D51) -> 3590 | E52: =SUM(E6:E51) -> 4910 | F52: =SUM(F6:F51) -> 6446

Sheet Version Control
B2: AMENDMENTS SINCE PUBLICATION
B4: DATE | C4: ISSUE | D4: NOTES
B5: 2015-05-01 | C5: 1 | D5: First version published
B6: 2015-11-16 | C6: 2 | D6: amendement to classification of heat pumps in low temperature application (unconditioned reference to Table 2 of Regulation 811/2013)
B7: 2019-07-22 | C7: 2.1 | D7: Rebranding of document, update of email and website addresses and cosmetic changes.
